fUST/lending_fUST_20250118
["ID","MTS","AMOUNT","RATE_DAILY","PERIOD"]
[349360415,1737135045075,-500.0,0.00022054,3]
[349360417,1737135045085,-502.9,0.00022054,3]
[349360419,1737135045095,-1181.96,0.00022054,3]
[349360421,1737135045104,-151.0,0.00022054,7]
[349360423,1737135045114,-151.0,0.00022054,7]
[349360424,1737135045124,-151.0,0.00022054,7]
[349360426,1737135045133,-500.0,0.00022054,3]
[349360429,1737135045143,-500.0,0.00022054,3]
[349360431,1737135045153,-500.0,0.00022054,3]
[349360432,1737135045163,-500.0,0.00022054,3]
[349360435,1737135045173,-500.0,0.00022054,3]
[349360436,1737135045182,-500.0,0.00022054,3]
[349360438,1737135045192,-500.0,0.00022054,3]
[349360440,1737135045201,-151.0,0.00022054,7]
[349360442,1737135045211,-151.0,0.00022054,7]
[349360444,1737135045220,-151.0,0.00022054,7]
[349360446,1737135045230,-500.0,0.00022054,3]
[349360448,1737135045239,-500.0,0.00022054,3]
[349360450,1737135045249,-500.0,0.00022054,3]
[349360452,1737135045258,-500.0,0.00022054,3]
[349360454,1737135045268,-500.0,0.00022054,3]
[349360456,1737135045277,-500.0,0.00022054,3]
[349360458,1737135045287,-500.0,0.00022054,3]
[349360460,1737135045296,-500.0,0.00022054,3]
[349360462,1737135045306,-618.08,0.00022054,3]
[349360464,1737135045315,-500.0,0.00022054,3]
[349360466,1737135045325,-500.0,0.00022054,3]
[349360468,1737135045335,-16922.73,0.00022054,3]
[349360470,1737135045344,-500.0,0.00022054,3]
[349360472,1737135045354,-500.0,0.00022054,3]
[349360474,1737135045364,-151.0,0.00022054,7]
[349360476,1737135045373,-500.0,0.00022054,3]
[349360478,1737135045383,-151.0,0.00022054,7]
[349360480,1737135045392,-151.0,0.00022054,7]
[349360482,1737135045403,-806.97,0.00022054,3]
[349360484,1737135045411,-500.0,0.00022054,3]
[349360486,1737135045421,-1821.82,0.00022054,3]
[349360488,1737135045431,-500.0,0.00022054,3]
[349360490,1737135045441,-201.375632,0.00022054,7]
[349360492,1737135045451,-201.375632,0.00022054,7]
[349360494,1737135045460,-201.375632,0.00022054,7]
[349360496,1737135045469,-500.00762011,0.00022054,2]
[349360498,1737135045479,-151.0,0.00022054,7]
[349360500,1737135045489,-151.0,0.00022054,7]
[349360502,1737135045499,-151.0,0.00022054,7]
[349360504,1737135045509,-201.375632,0.00022054,7]
[349360506,1737135045519,-2330.38,0.00022054,3]
[349360508,1737135045530,-201.375632,0.00022054,7]
[349360510,1737135045540,-201.375632,0.00022054,7]
[349360512,1737135045549,-500.0,0.00022073,2]
[349360514,1737135045559,-504.73076203,0.00022073,2]
[349360516,1737135045569,-500.0,0.00022073,2]
[349360518,1737135045579,-500.0,0.00022073,2]
[349360520,1737135045589,-500.0,0.00022073,2]
[349360522,1737135045599,-500.28101052,0.00022073,2]
[349360524,1737135045608,-154.0,0.00022073,2]
[349360526,1737135045617,-154.0,0.00022073,2]
[349360528,1737135045627,-154.0,0.00022073,2]
[349360530,1737135045637,-154.0,0.00022073,2]
[349360532,1737135045648,-154.0,0.00022073,2]
[349360534,1737135045658,-154.0,0.00022073,2]
[349360536,1737135045668,-154.0,0.00022073,2]
[349360538,1737135045678,-154.0,0.00022073,2]
[349360540,1737135045688,-154.0,0.00022073,2]
[349360542,1737135045698,-154.0,0.00022073,2]
[349360544,1737135045709,-154.0,0.00022073,2]
[349360546,1737135045719,-154.0,0.00022073,2]
[349360548,1737135045729,-154.0,0.00022073,2]
[349360550,1737135045742,-154.0,0.00022073,2]
[349360552,1737135045753,-165.53,0.00022073,2]
[349360554,1737135045762,-805.24,0.000221,2]
[349360556,1737135045772,-300.0,0.000221,10]
[349360558,1737135045782,-4767.47315341,0.00022107,3]
[349360560,1737135045791,-151.0,0.00022107,7]
[349360562,1737135045801,-151.0,0.00022107,7]
[349360564,1737135045811,-285.91298,0.00022107,7]
[349360566,1737135045822,-249.0,0.00022126,2]
[349360568,1737135045831,-4767.47315341,0.00022176,3]
[349360570,1737135045842,-430.67561317,0.0002219,2]
[349360572,1737135045851,-360.53866179,0.00022191,3]
[349360574,1737135045861,-500.0,0.00022191,3]
[349360576,1737135045870,-500.0,0.00022191,3]
[349360578,1737135045880,-500.0,0.00022191,3]
[349360580,1737135045890,-362.95186705,0.00022191,3]
[349360582,1737135045900,-500.0,0.00022191,3]
[349360584,1737135045910,-500.0,0.00022191,3]
[349360586,1737135045919,-459.53486951,0.00022191,3]
[349360588,1737135045929,-500.0,0.00022191,3]
[349360590,1737135045938,-152.189968,0.00022191,7]
[349360592,1737135045947,-510.13,0.00022191,3]
[349360594,1737135045958,-267.63061,0.00022191,7]
[349360596,1737135045968,-151.0,0.00022191,7]
[349360598,1737135045977,-151.0,0.00022191,7]
[349360600,1737135045987,-500.0,0.00022191,3]
[349360602,1737135045996,-672.12,0.00022191,3]
[349360604,1737135046006,-500.0,0.00022191,3]
[349360606,1737135046015,-500.0,0.00022191,3]
[349360608,1737135046024,-500.0,0.00022191,3]
[349360610,1737135046034,-584.62,0.00022191,3]
[349360613,1737135046043,-500.0,0.00022191,3]
[349360615,1737135046053,-500.0,0.00022191,3]
[349360617,1737135046062,-500.0,0.00022191,3]
[349360619,1737135046071,-500.0,0.00022191,3]
[349360621,1737135046081,-151.0,0.00022191,7]
[349360623,1737135046091,-151.0,0.00022191,7]
[349360625,1737135046100,-500.0,0.00022191,3]
[349360627,1737135046110,-500.0,0.00022191,3]
[349360629,1737135046120,-500.0,0.00022191,3]
[349360631,1737135046130,-500.0,0.00022191,3]
[349360633,1737135046139,-500.0,0.00022191,3]
[349360635,1737135046150,-500.0,0.00022191,3]
[349360637,1737135046159,-500.0,0.00022191,3]
[349360640,1737135046169,-500.0,0.00022191,3]
[349360642,1737135046179,-172.39475,0.00022191,7]
[349360644,1737135046188,-500.0,0.00022191,3]
[349360646,1737135046198,-172.39475,0.00022191,7]
[349360648,1737135046208,-172.39475,0.00022191,7]
[349360650,1737135046218,-172.39475,0.00022191,7]
[349360652,1737135046228,-151.0,0.00022191,7]
[349360654,1737135046238,-151.0,0.00022191,7]
[349360656,1737135046248,-500.0,0.00022191,3]
[349360658,1737135046258,-500.0,0.00022191,3]
[349360660,1737135046267,-327.19235909,0.00022191,3]
[349360662,1737135046276,-500.0,0.00022191,3]
[349360664,1737135046285,-500.0,0.00022191,3]
[349360666,1737135046295,-500.0,0.00022191,3]
[349360668,1737135046305,-500.0,0.00022191,2]
[349360670,1737135046315,-500.0,0.00022191,3]
[349360672,1737135046324,-223.055024,0.00022191,2]
[349360673,1737135046333,-500.0,0.00022191,3]
[349360674,1737135046343,-161.091587,0.00022191,7]
[349360675,1737135046352,-161.091587,0.00022191,7]
[349360676,1737135046360,-161.091587,0.00022191,7]
[349360677,1737135046369,-161.091587,0.00022191,7]
[349360679,1737135046379,-500.0,0.00022191,3]
[349360681,1737135046390,-500.0,0.00022191,2]
[349360683,1737135046402,-500.0,0.00022191,3]
[349360695,1737135046489,-3970.76,0.00022191,3]
[349360697,1737135046509,-500.0,0.00022191,3]
[349360699,1737135046519,-500.0,0.00022191,3]
[349360701,1737135046529,-556.21,0.00022191,3]
[349360703,1737135046539,-867.47,0.00022191,3]
[349360705,1737135046549,-1219.6,0.00022191,3]
[349360707,1737135046559,-502.48133731,0.00022191,3]
[349360709,1737135046568,-500.0,0.00022191,3]
[349360711,1737135046582,-500.0,0.00022191,3]
[349360713,1737135046592,-500.0,0.00022191,3]
[349360715,1737135046602,-566.5,0.00022191,3]
[349360717,1737135046612,-500.0,0.00022191,3]
[349360719,1737135046621,-760.56,0.00022191,3]
[349360721,1737135046631,-151.0,0.00022191,7]
[349360723,1737135046641,-151.0,0.00022191,7]
[349360725,1737135046654,-500.0,0.00022191,3]
[349360728,1737135046663,-500.0,0.00022191,3]
[349360729,1737135046672,-443.54734707,0.00022191,3]
[349360732,1737135046683,-10457.47,0.00022191,3]
[349360734,1737135046694,-514.92807333,0.00022191,3]
[349360736,1737135046704,-1547.43,0.00022191,3]
[349360737,1737135046714,-500.0,0.00022191,3]
[349360740,1737135046724,-568.44,0.00022191,3]
[349360742,1737135046735,-500.0,0.00022191,3]
[349360744,1737135046749,-500.0,0.00022191,3]
[349360746,1737135046759,-415.36769251,0.00022191,3]
[349360748,1737135046770,-338.16988557,0.00022191,3]
[349360750,1737135046780,-500.0,0.00022191,3]
[349360751,1737135046790,-1597.15,0.00022191,3]
[349360753,1737135046800,-3889.64,0.00022191,3]
[349360755,1737135046809,-500.0,0.00022191,3]
[349360757,1737135046820,-1538.17,0.00022191,3]
[349360760,1737135046830,-500.0,0.00022191,3]
[349360761,1737135046840,-500.0,0.00022191,3]
[349360764,1737135046850,-3923.76,0.00022191,3]
[349360766,1737135046860,-500.0,0.00022191,3]
[349360768,1737135046870,-524.51,0.00022191,3]
[349360770,1737135046881,-664.33,0.00022191,3]
[349360772,1737135046891,-500.0,0.00022191,3]
[349360774,1737135046903,-500.0,0.00022191,3]
[349360776,1737135046912,-653.14,0.00022191,3]
[349360778,1737135046922,-500.0,0.00022191,3]
[349360780,1737135046931,-502.9,0.00022191,3]
[349360782,1737135046940,-1181.96,0.00022191,3]
[349360784,1737135046951,-500.0,0.00022191,3]
[349360786,1737135046962,-500.0,0.00022191,3]
[349360788,1737135046971,-500.0,0.00022191,3]
[349360790,1737135046981,-151.0,0.00022191,7]
[349360792,1737135046992,-151.0,0.00022191,7]
[349360794,1737135047002,-500.0,0.00022191,3]
[349360796,1737135047012,-500.0,0.00022191,3]
[349360798,1737135047021,-500.0,0.00022191,3]
[349360800,1737135047031,-500.0,0.00022191,3]
[349360802,1737135047040,-500.0,0.00022191,3]
[349360804,1737135047050,-500.0,0.00022191,3]
[349360806,1737135047059,-500.0,0.00022191,3]
[349360808,1737135047068,-500.0,0.00022191,3]
[349360810,1737135047078,-16922.73,0.00022191,3]
[349360812,1737135047087,-520.83,0.00022191,3]
[349360814,1737135047097,-500.0,0.00022191,3]
[349360816,1737135047106,-500.0,0.00022191,3]
[349360818,1737135047116,-151.0,0.00022191,7]
[349360820,1737135047126,-151.0,0.00022191,7]
[349360822,1737135047135,-806.97,0.00022191,3]
[349360824,1737135047146,-500.0,0.00022191,3]
[349360826,1737135047155,-1821.82,0.00022191,3]
[349360828,1737135047164,-500.0,0.00022191,3]
[349360830,1737135047173,-201.375632,0.00022191,7]
[349360832,1737135047182,-201.375632,0.00022191,7]
[349360834,1737135047192,-151.0,0.00022191,7]
[349360836,1737135047203,-151.0,0.00022191,7]
[349360838,1737135047213,-2330.38,0.00022191,3]
[349360840,1737135047223,-201.375632,0.00022191,7]
[349360842,1737135047233,-201.375632,0.00022191,7]
[349360844,1737135047243,-331.0,0.00022192,2]
[349360846,1737135047254,-1767.23961949,0.00022217,2]
[349360848,1737135047264,-4767.47315341,0.00022245,3]
[349360850,1737135047274,-151.0,0.00022245,7]
[349360852,1737135047283,-395.0,0.000223,2]
[349360854,1737135047293,-4767.47315341,0.00022314,3]
[349360856,1737135047302,-161.091587,0.00022325,7]
[349360858,1737135047311,-161.091583,0.00022325,7]
[349360860,1737135047320,-500.0,0.00022328,3]
[349360862,1737135047329,-500.0,0.00022328,3]
[349360864,1737135047339,-500.0,0.00022328,3]
[349360866,1737135047348,-328.81316709,0.00022328,3]
[349360868,1737135047357,-510.13,0.00022328,3]
[349360870,1737135047367,-151.0,0.00022328,7]
[349360872,1737135047377,-500.0,0.00022328,3]
[349360874,1737135047386,-672.12,0.00022328,3]
[349360876,1737135047396,-500.0,0.00022328,3]
[349360878,1737135047406,-500.0,0.00022328,3]
[349360880,1737135047415,-500.0,0.00022328,3]
[349360882,1737135047424,-500.0,0.00022328,3]
[349360884,1737135047434,-500.0,0.00022328,3]
[349360886,1737135047444,-500.0,0.00022328,3]
[349360888,1737135047453,-500.0,0.00022328,3]
[349360890,1737135047463,-211.158076,0.00022328,7]
[349360892,1737135047472,-500.0,0.00022328,3]
[349360894,1737135047483,-500.0,0.00022328,3]
[349360896,1737135047493,-319.39,0.00022328,3]
[349360898,1737135047502,-500.0,0.00022328,3]
[349360900,1737135047511,-500.0,0.00022328,3]
[349360902,1737135047521,-500.0,0.00022328,3]
[349360903,1737135047531,-500.0,0.00022328,3]
[349360904,1737135047541,-543.62958107,0.00022328,3]
[349360905,1737135047551,-172.39475,0.00022328,7]
[349360906,1737135047562,-500.0,0.00022328,3]
[349360907,1737135047572,-172.394745,0.00022328,7]
[349360908,1737135047582,-151.0,0.00022328,7]
[349360909,1737135047592,-500.0,0.00022328,3]
[349360910,1737135047602,-192.16,0.00022328,3]
[349360911,1737135047611,-500.0,0.00022328,2]
[349360912,1737135047622,-500.0,0.00022328,3]
[349360913,1737135047631,-500.0,0.00022328,3]
[349360914,1737135047642,-500.0,0.00022328,3]
[349360915,1737135047655,-500.0,0.00022328,2]
[349360916,1737135047666,-500.0,0.00022328,3]
[349360917,1737135047676,-3970.76,0.00022328,3]
[349360918,1737135047687,-500.0,0.00022328,3]
[349360919,1737135047698,-867.47,0.00022328,3]
[349360921,1737135047708,-1219.6,0.00022328,3]
[349360922,1737135047718,-500.0,0.00022328,3]
[349360924,1737135047727,-500.0,0.00022328,3]
[349360925,1737135047739,-500.0,0.00022328,3]
[349360927,1737135047749,-566.5,0.00022328,3]
[349360929,1737135047759,-760.56,0.00022328,3]
[349360930,1737135047769,-500.0,0.00022328,3]
[349360931,1737135047779,-500.0,0.00022328,3]
[349360932,1737135047789,-10457.47,0.00022328,3]
[349360933,1737135047800,-1547.43,0.00022328,3]
[349360934,1737135047810,-500.0,0.00022328,3]
[349360935,1737135047820,-568.44,0.00022328,3]
[349360936,1737135047831,-500.0,0.00022328,3]
[349360937,1737135047842,-500.0,0.00022328,3]
[349360938,1737135047852,-1597.15,0.00022328,3]
[349360940,1737135047862,-3889.64,0.00022328,3]
[349360942,1737135047871,-500.0,0.00022328,3]
[349360944,1737135047881,-221.49825535,0.00022328,3]
[349360945,1737135047890,-1538.17,0.00022328,3]
[349360947,1737135047902,-500.0,0.00022328,3]
[349360948,1737135047912,-3923.76,0.00022328,3]
[349360949,1737135047922,-664.33,0.00022328,3]
[349360950,1737135047932,-500.0,0.00022328,3]
[349360951,1737135047942,-653.14,0.00022328,3]
[349360952,1737135047952,-500.0,0.00022328,3]
[349360953,1737135047962,-502.9,0.00022328,3]
[349360954,1737135047972,-1181.96,0.00022328,3]
[349360955,1737135047981,-500.0,0.00022328,3]
[349360956,1737135047991,-500.0,0.00022328,3]
[349360957,1737135048001,-500.0,0.00022328,3]
[349360958,1737135048010,-151.0,0.00022328,7]
[349360960,1737135048021,-500.0,0.00022328,3]
[349360962,1737135048030,-500.0,0.00022328,3]
[349360964,1737135048041,-500.0,0.00022328,3]
[349360966,1737135048051,-225.00566743,0.00022328,3]
[349360968,1737135048061,-500.0,0.00022328,3]
[349360970,1737135048071,-500.0,0.00022328,3]
[349360972,1737135048082,-16922.73,0.00022328,3]
[349360974,1737135048092,-500.0,0.00022328,3]
[349360976,1737135048103,-151.0,0.00022328,7]
[349360978,1737135048114,-806.97,0.00022328,3]
[349360980,1737135048124,-500.0,0.00022328,3]
[349360982,1737135048135,-1821.82,0.00022328,3]
[349360984,1737135048146,-500.0,0.00022328,3]
[349360985,1737135048156,-201.375632,0.00022328,7]
[349360986,1737135048166,-2330.38,0.00022328,3]
[349360987,1737135048177,-201.375639,0.00022328,7]
[349360988,1737135048186,-4767.47315341,0.00022383,3]
[349360989,1737135048196,-4804.57,0.000224,14]
[349360990,1737135048206,-1782.01,0.000224,14]
[349360991,1737135048216,-4767.47315341,0.00022452,3]
[349360992,1737135048226,-500.0,0.00022465,3]
[349360993,1737135048235,-249.16286148,0.00022465,3]
[349360994,1737135048245,-500.0,0.00022465,3]
[349360995,1737135048255,-510.13,0.00022465,3]
[349360996,1737135048265,-500.0,0.00022465,3]
[349360997,1737135048275,-672.12,0.00022465,3]
[349360998,1737135048285,-500.0,0.00022465,3]
[349360999,1737135048296,-500.0,0.00022465,3]
[349361000,1737135048306,-500.0,0.00022465,3]
[349361001,1737135048315,-500.0,0.00022465,3]
[349361002,1737135048326,-500.0,0.00022465,3]
[349361004,1737135048336,-500.0,0.00022465,3]
[349361005,1737135048346,-500.0,0.00022465,3]
[349361006,1737135048357,-500.0,0.00022465,3]
[349361007,1737135048367,-500.0,0.00022465,3]
[349361008,1737135048465,-500.0,0.00022465,3]
[349361009,1737135048476,-500.0,0.00022465,3]
[349361010,1737135048487,-500.0,0.00022465,3]
[349361012,1737135048498,-500.0,0.00022465,3]
[349361015,1737135048508,-500.0,0.00022465,3]
[349361017,1737135048518,-500.0,0.00022465,2]
[349361019,1737135048528,-267.89,0.00022465,3]
[349361020,1737135048539,-500.0,0.00022465,3]
[349361022,1737135048549,-500.0,0.00022465,3]
[349361025,1737135048559,-500.0,0.00022465,2]
[349361027,1737135048569,-500.0,0.00022465,3]
[349361028,1737135048579,-3970.76,0.00022465,3]
[349361030,1737135048589,-500.0,0.00022465,3]
[349361032,1737135048598,-867.47,0.00022465,3]
[349361035,1737135048608,-1219.6,0.00022465,3]
[349361036,1737135048618,-604.29,0.00022465,3]
[349361038,1737135048627,-500.0,0.00022465,3]
[349361039,1737135048637,-500.0,0.00022465,3]
[349361040,1737135048647,-566.5,0.00022465,3]
[349361041,1737135048658,-760.56,0.00022465,3]
[349361042,1737135048668,-604.71202485,0.00022465,3]
[349361043,1737135048678,-500.0,0.00022465,3]
[349361044,1737135048688,-10457.47,0.00022465,3]
[349361045,1737135048698,-1547.43,0.00022465,3]
[349361046,1737135048708,-500.0,0.00022465,3]
[349361047,1737135048718,-568.44,0.00022465,3]
[349361048,1737135048728,-500.0,0.00022465,3]
[349361049,1737135048741,-500.0,0.00022465,3]
[349361050,1737135048752,-1597.15,0.00022465,3]
[349361051,1737135048762,-3889.64,0.00022465,3]
[349361052,1737135048772,-500.0,0.00022465,3]
[349361053,1737135048782,-1538.17,0.00022465,3]
[349361055,1737135048792,-500.0,0.00022465,3]
[349361057,1737135048802,-3923.76,0.00022465,3]
[349361059,1737135048812,-664.33,0.00022465,3]
[349361060,1737135048824,-500.0,0.00022465,3]
[349361062,1737135048834,-653.14,0.00022465,3]
[349361064,1737135048844,-500.0,0.00022465,3]
[349361066,1737135048854,-502.9,0.00022465,3]
[349361068,1737135048863,-1181.96,0.00022465,3]
[349361070,1737135048873,-500.0,0.00022465,3]
[349361072,1737135048883,-500.0,0.00022465,3]
[349361074,1737135048893,-500.0,0.00022465,3]
[349361076,1737135048904,-500.0,0.00022465,3]
[349361078,1737135048913,-500.0,0.00022465,3]
[349361080,1737135048923,-500.0,0.00022465,3]
[349361082,1737135048934,-500.0,0.00022465,3]
[349361084,1737135048944,-337.62,0.00022465,3]
[349361086,1737135048953,-16922.73,0.00022465,3]
[349361087,1737135048963,-500.0,0.00022465,3]
[349361088,1737135048974,-806.97,0.00022465,3]
[349361089,1737135048984,-500.0,0.00022465,3]
[349361090,1737135048994,-1821.82,0.00022465,3]
[349361091,1737135049004,-500.0,0.00022465,3]
[349361092,1737135049014,-2330.38,0.00022465,3]
[349361093,1737135049024,-151.0,0.000225,9]
[349361094,1737135049033,-151.0,0.000225,5]
[349361095,1737135049043,-4767.47315341,0.00022521,3]
[349361097,1737135049054,-2633.0,0.00022549,4]
[349361099,1737135049064,-4767.47315341,0.0002259,3]
[349361101,1737135049073,-151.0,0.000226,7]
[349361102,1737135049083,-500.0,0.00022602,3]
[349361104,1737135049093,-511.06,0.00022602,3]
[349361106,1737135049102,-510.13,0.00022602,3]
[349361108,1737135049112,-571.81,0.00022602,3]
[349361109,1737135049122,-672.12,0.00022602,3]
[349361111,1737135049132,-160.84,0.00022602,3]
[349361113,1737135049141,-500.0,0.00022602,3]
[349361115,1737135049152,-500.0,0.00022602,3]
[349361116,1737135049163,-500.0,0.00022602,3]
[349361117,1737135049173,-500.0,0.00022602,3]
[349361118,1737135049183,-500.0,0.00022602,3]
[349361120,1737135049192,-500.0,0.00022602,3]
[349361122,1737135049202,-500.0,0.00022602,3]
[349361123,1737135049212,-314.01643417,0.00022602,3]
[349361124,1737135049222,-500.0,0.00022602,3]
[349361125,1737135049231,-500.0,0.00022602,3]
[349361126,1737135049240,-500.0,0.00022602,3]
[349361127,1737135049250,-500.0,0.00022602,3]
[349361128,1737135049260,-367.38,0.00022602,3]
[349361129,1737135049269,-500.0,0.00022602,2]
[349361130,1737135049279,-500.0,0.00022602,3]
[349361131,1737135049288,-500.0,0.00022602,3]
[349361132,1737135049298,-500.0,0.00022602,2]
[349361133,1737135049308,-566.28,0.00022602,3]
[349361134,1737135049318,-3970.76,0.00022602,3]
[349361135,1737135049327,-500.0,0.00022602,3]
[349361136,1737135049339,-867.47,0.00022602,3]
[349361137,1737135049349,-1219.6,0.00022602,3]
[349361138,1737135049359,-500.0,0.00022602,3]
[349361139,1737135049369,-500.0,0.00022602,3]
[349361140,1737135049378,-566.5,0.00022602,3]
[349361141,1737135049388,-760.56,0.00022602,3]
[349361142,1737135049398,-500.0,0.00022602,3]
[349361143,1737135049407,-10457.47,0.00022602,3]
[349361144,1737135049417,-1547.43,0.00022602,3]
[349361145,1737135049426,-507.28,0.00022602,3]
[349361146,1737135049436,-568.44,0.00022602,3]
[349361147,1737135049445,-500.0,0.00022602,3]
[349361148,1737135049454,-500.0,0.00022602,3]
[349361149,1737135049464,-1597.15,0.00022602,3]
[349361150,1737135049474,-3889.64,0.00022602,3]
[349361151,1737135049484,-500.0,0.00022602,3]
[349361152,1737135049493,-1538.17,0.00022602,3]
[349361153,1737135049502,-500.0,0.00022602,3]
[349361154,1737135049512,-3923.76,0.00022602,3]
[349361155,1737135049522,-664.33,0.00022602,3]
[349361156,1737135049532,-500.0,0.00022602,3]
[349361157,1737135049542,-653.14,0.00022602,3]
[349361158,1737135049552,-500.0,0.00022602,3]
[349361159,1737135049562,-502.9,0.00022602,3]
[349361160,1737135049571,-1181.96,0.00022602,3]
[349361161,1737135049580,-500.0,0.00022602,3]
[349361162,1737135049590,-500.0,0.00022602,3]
[349361163,1737135049600,-500.0,0.00022602,3]
[349361164,1737135049609,-500.0,0.00022602,3]
[349361165,1737135049619,-500.0,0.00022602,3]
[349361166,1737135049629,-500.0,0.00022602,3]
[349361167,1737135049639,-500.0,0.00022602,3]
[349361168,1737135049650,-16922.73,0.00022602,3]
[349361169,1737135049659,-500.0,0.00022602,3]
[349361170,1737135049670,-806.97,0.00022602,3]
[349361171,1737135049679,-508.304569,0.00022602,3]
[349361172,1737135049689,-1821.82,0.00022602,3]
[349361173,1737135049699,-500.0,0.00022602,3]
[349361174,1737135049709,-2330.38,0.00022602,3]
[349361175,1737135049719,-420.0,0.00022615,2]
[349361176,1737135049728,-1000.0,0.00022621,2]
[349361177,1737135049739,-4767.47315341,0.00022659,3]
[349361178,1737135049752,-8205.34,0.000227,2]
[349361179,1737135049762,-151.0,0.000227,9]
[349361180,1737135049771,-151.0,0.000227,5]
[349361181,1737135049782,-4767.47315341,0.00022728,3]
[349361182,1737135049792,-500.0,0.00022739,3]
[349361183,1737135049802,-510.13,0.00022739,3]
[349361184,1737135049811,-672.12,0.00022739,3]
[349361185,1737135049822,-500.0,0.00022739,3]
[349361186,1737135049832,-588.67356678,0.00022739,3]
[349361187,1737135049842,-500.0,0.00022739,3]
[349361188,1737135049853,-500.0,0.00022739,3]
[349361189,1737135049863,-500.0,0.00022739,3]
[349361190,1737135049872,-500.0,0.00022739,3]
[349361191,1737135049882,-500.0,0.00022739,3]
[349361192,1737135049892,-500.0,0.00022739,3]
[349361193,1737135049903,-500.0,0.00022739,3]
[349361194,1737135049912,-500.0,0.00022739,3]
[349361195,1737135049923,-500.0,0.00022739,3]
[349361196,1737135049933,-500.0,0.00022739,2]
[349361197,1737135049943,-500.0,0.00022739,3]
[349361198,1737135049953,-500.0,0.00022739,3]
[349361199,1737135049963,-500.0,0.00022739,2]
[349361200,1737135049974,-3970.76,0.00022739,3]
[349361201,1737135049984,-500.0,0.00022739,3]
[349361202,1737135049995,-867.47,0.00022739,3]
[349361203,1737135050004,-1219.6,0.00022739,3]
[349361204,1737135050014,-500.0,0.00022739,3]
[349361205,1737135050024,-500.0,0.00022739,3]
[349361206,1737135050034,-566.5,0.00022739,3]
[349361207,1737135050044,-760.56,0.00022739,3]
[349361208,1737135050054,-500.0,0.00022739,3]
[349361209,1737135050064,-10457.47,0.00022739,3]
[349361210,1737135050074,-1547.43,0.00022739,3]
[349361211,1737135050083,-568.44,0.00022739,3]
[349361212,1737135050093,-500.0,0.00022739,3]
[349361213,1737135050103,-500.0,0.00022739,3]
[349361214,1737135050112,-1597.15,0.00022739,3]
[349361215,1737135050122,-3889.64,0.00022739,3]
[349361216,1737135050132,-500.0,0.00022739,3]
[349361217,1737135050143,-1538.17,0.00022739,3]
[349361218,1737135050154,-500.0,0.00022739,3]
[349361219,1737135050163,-3923.76,0.00022739,3]
[349361220,1737135050250,-664.33,0.00022739,3]
[349361221,1737135050260,-500.0,0.00022739,3]
[349361222,1737135050271,-653.14,0.00022739,3]
[349361223,1737135050281,-500.0,0.00022739,3]
[349361224,1737135050291,-502.9,0.00022739,3]